[Event "*** SCC Grand Prix: Titled Tuesday Blitz"]
[Site "Chess.com"]
[Date "2020.07.21"]
[Round "2"]
[White "warmoatmeal"]
[Black "Joseacorrea"]
[Result "1/2-1/2"]
[WhiteElo "2357"]
[BlackElo "1972"]
[TimeControl "180+1"]
[EndTime "10:20:23 PDT"]
[Termination "Game drawn by 50-move rule"]

1. Nf3 {[%clk 0:03:00.9]} 1... d5 {[%clk 0:02:58.8]} 2. d4 {[%clk 0:03:00.5]}
2... e6 {[%clk 0:02:57.8]} 3. Bg5 {[%clk 0:02:59.3]} 3... Be7 {[%clk 0:02:57.6]}
4. Bxe7 {[%clk 0:02:57.4]} 4... Qxe7 {[%clk 0:02:58.5]} 5. e3 {[%clk 0:02:57.3]}
5... f5 {[%clk 0:02:58.3]} 6. c3 {[%clk 0:02:56.7]} 6... Nf6 {[%clk 0:02:58.9]}
7. Ne5 {[%clk 0:02:56.8]} 7... O-O {[%clk 0:02:58.3]} 8. Nd2 {[%clk 0:02:54.8]}
8... Nbd7 {[%clk 0:02:58.3]} 9. Ndf3 {[%clk 0:02:49.7]} 9... Ne4 {[%clk
0:02:58.1]} 10. Nxd7 {[%clk 0:02:49]} 10... Bxd7 {[%clk 0:02:57.7]} 11. Ne5
{[%clk 0:02:49.2]} 11... c5 {[%clk 0:02:45.7]} 12. Bd3 {[%clk 0:02:47.2]} 12...
c4 {[%clk 0:02:39.6]} 13. Bxe4 {[%clk 0:02:31]} 13... fxe4 {[%clk 0:02:40.5]}
14. Qg4 {[%clk 0:02:28.5]} 14... Rf6 {[%clk 0:02:27.8]} 15. O-O {[%clk
0:02:27.8]} 15... Raf8 {[%clk 0:02:26.9]} 16. f3 {[%clk 0:02:25.4]} 16... exf3
{[%clk 0:02:17.4]} 17. Rxf3 {[%clk 0:02:26.3]} 17... Rxf3 {[%clk 0:02:15.2]} 18.
gxf3 {[%clk 0:02:22.8]} 18... Rf6 {[%clk 0:02:10.7]} 19. Kh1 {[%clk 0:02:15.7]}
19... Be8 {[%clk 0:01:56.2]} 20. Rg1 {[%clk 0:02:12.7]} 20... Bg6 {[%clk
0:01:44.8]} 21. Nxg6 {[%clk 0:02:05]} 21... Rxg6 {[%clk 0:01:43.5]} 22. Qf4
{[%clk 0:02:05]} 22... Rf6 {[%clk 0:01:19.2]} 23. Qb8+ {[%clk 0:01:43.8]} 23...
Rf8 {[%clk 0:01:18]} 24. Qg3 {[%clk 0:01:38.4]} 24... Qf7 {[%clk 0:01:13.3]} 25.
f4 {[%clk 0:01:28]} 25... b5 {[%clk 0:01:08.7]} 26. a3 {[%clk 0:01:26.9]} 26...
a5 {[%clk 0:01:08.1]} 27. Qg5 {[%clk 0:01:21.8]} 27... Qf6 {[%clk 0:01:04.2]}
28. h4 {[%clk 0:01:07.5]} 28... Qxg5 {[%clk 0:00:49.6]} 29. Rxg5 {[%clk
0:01:08.4]} 29... b4 {[%clk 0:00:48.1]} 30. axb4 {[%clk 0:00:52.7]} 30... axb4
{[%clk 0:00:49]} 31. cxb4 {[%clk 0:00:53.5]} 31... Rb8 {[%clk 0:00:48.3]} 32.
Re5 {[%clk 0:00:51.2]} 32... Rxb4 {[%clk 0:00:39.8]} 33. Rxe6 {[%clk 0:00:51.3]}
33... Rxb2 {[%clk 0:00:39.4]} 34. Rc6 {[%clk 0:00:27.2]} 34... Re2 {[%clk
0:00:36.4]} 35. Rc5 {[%clk 0:00:22.3]} 35... Rxe3 {[%clk 0:00:35.8]} 36. Rxd5
{[%clk 0:00:22.4]} 36... c3 {[%clk 0:00:29.6]} 37. Rc5 {[%clk 0:00:21.8]} 37...
Rd3 {[%clk 0:00:29]} 38. d5 {[%clk 0:00:21.1]} 38... c2 {[%clk 0:00:28.5]} 39.
Rxc2 {[%clk 0:00:19.8]} 39... Rxd5 {[%clk 0:00:28.6]} 40. Kg2 {[%clk 0:00:18.8]}
40... Rd3 {[%clk 0:00:27.3]} 41. Rc5 {[%clk 0:00:17.2]} 41... Kf7 {[%clk
0:00:26.8]} 42. h5 {[%clk 0:00:17.3]} 42... Kf6 {[%clk 0:00:26.1]} 43. Rc7
{[%clk 0:00:14.9]} 43... h6 {[%clk 0:00:22.5]} 44. Rc6+ {[%clk 0:00:14.6]} 44...
Kf5 {[%clk 0:00:20]} 45. Rg6 {[%clk 0:00:14.7]} 45... Kxf4 {[%clk 0:00:19.2]}
46. Rxg7 {[%clk 0:00:12]} 46... Rd2+ {[%clk 0:00:16.9]} 47. Kh3 {[%clk
0:00:08.9]} 47... Rd5 {[%clk 0:00:16.3]} 48. Kh4 {[%clk 0:00:07]} 48... Rd1
{[%clk 0:00:10.1]} 49. Rf7+ {[%clk 0:00:06.8]} 49... Ke5 {[%clk 0:00:10.1]} 50.
Rh7 {[%clk 0:00:02.8]} 50... Kf4 {[%clk 0:00:08.8]} 51. Rf7+ {[%clk 0:00:02.4]}
51... Ke5 {[%clk 0:00:08.8]} 52. Kg3 {[%clk 0:00:02.6]} 52... Rh1 {[%clk
0:00:07.3]} 53. Kg4 {[%clk 0:00:01.8]} 53... Rg1+ {[%clk 0:00:07.3]} 54. Kh4
{[%clk 0:00:02.4]} 54... Rh1+ {[%clk 0:00:07.2]} 55. Kg4 {[%clk 0:00:02.8]}
55... Rg1+ {[%clk 0:00:07.1]} 56. Kh3 {[%clk 0:00:03]} 56... Rg5 {[%clk
0:00:06.6]} 57. Rh7 {[%clk 0:00:02.5]} 57... Rxh5+ {[%clk 0:00:06.5]} 58. Kg4
{[%clk 0:00:03.2]} 58... Rg5+ {[%clk 0:00:06.8]} 59. Kh4 {[%clk 0:00:04.1]}
59... Kf4 {[%clk 0:00:06.6]} 60. Rxh6 {[%clk 0:00:03.5]} 60... Rf5 {[%clk
0:00:07.5]} 61. Rg6 {[%clk 0:00:03.5]} 61... Kf3 {[%clk 0:00:06.9]} 62. Rg3+
{[%clk 0:00:03.6]} 62... Kf4 {[%clk 0:00:06.7]} 63. Rg4+ {[%clk 0:00:04]} 63...
Ke5 {[%clk 0:00:07.6]} 64. Rg1 {[%clk 0:00:04]} 64... Kf6 {[%clk 0:00:08.2]} 65.
Re1 {[%clk 0:00:04.1]} 65... Rf4+ {[%clk 0:00:08.1]} 66. Kg3 {[%clk 0:00:04.2]}
66... Rf5 {[%clk 0:00:09]} 67. Ra1 {[%clk 0:00:04.4]} 67... Rg5+ {[%clk
0:00:09.1]} 68. Kf4 {[%clk 0:00:04.1]} 68... Rf5+ {[%clk 0:00:09.7]} 69. Kg4
{[%clk 0:00:04.3]} 69... Rg5+ {[%clk 0:00:09.6]} 70. Kh4 {[%clk 0:00:04.6]}
70... Rf5 {[%clk 0:00:09.9]} 71. Ra6+ {[%clk 0:00:04.9]} 71... Ke5 {[%clk
0:00:10.2]} 72. Kg4 {[%clk 0:00:04.8]} 72... Rf4+ {[%clk 0:00:09.4]} 73. Kg3
{[%clk 0:00:05.2]} 73... Rd4 {[%clk 0:00:09.9]} 74. Rh6 {[%clk 0:00:04.6]} 74...
Rd3+ {[%clk 0:00:09.3]} 75. Kf2 {[%clk 0:00:04.9]} 75... Ke4 {[%clk 0:00:08.2]}
76. Ke2 {[%clk 0:00:05]} 76... Rb3 {[%clk 0:00:07.6]} 77. Rh4+ {[%clk
0:00:04.6]} 77... Kd5 {[%clk 0:00:07.3]} 78. Rh5+ {[%clk 0:00:04.9]} 78... Ke4
{[%clk 0:00:07.3]} 79. Kd2 {[%clk 0:00:05]} 79... Kd4 {[%clk 0:00:07.4]} 80. Kc2
{[%clk 0:00:05]} 80... Rg3 {[%clk 0:00:08]} 81. Rh4+ {[%clk 0:00:05.1]} 81...
Ke5 {[%clk 0:00:07.9]} 82. Rh8 {[%clk 0:00:05.1]} 82... Kf4 {[%clk 0:00:07.9]}
83. Kd2 {[%clk 0:00:05.3]} 83... Ke5 {[%clk 0:00:08.3]} 84. Ke2 {[%clk
0:00:05.3]} 84... Rg4 {[%clk 0:00:08.8]} 85. Kf3 {[%clk 0:00:05.1]} 85... Rb4
{[%clk 0:00:09.6]} 86. Rh5+ {[%clk 0:00:04.7]} 86... Kf6 {[%clk 0:00:09.6]} 87.
Rh7 {[%clk 0:00:03.8]} 87... Kg6 {[%clk 0:00:08.7]} 88. Rc7 {[%clk 0:00:04.3]}
88... Kf6 {[%clk 0:00:08.2]} 89. Rc6+ {[%clk 0:00:04.7]} 89... Ke5 {[%clk
0:00:08.1]} 90. Ke3 {[%clk 0:00:05.1]} 90... Kd5 {[%clk 0:00:08.4]} 91. Rh6
{[%clk 0:00:04.6]} 91... Rb3+ {[%clk 0:00:08.6]} 92. Kf4 {[%clk 0:00:04.6]}
92... Rb4+ {[%clk 0:00:09.1]} 93. Kg3 {[%clk 0:00:05.5]} 93... Rb3+ {[%clk
0:00:09.4]} 94. Kg4 {[%clk 0:00:05.1]} 94... Rb4+ {[%clk 0:00:09.9]} 95. Kg5
{[%clk 0:00:05.5]} 95... Rb1 {[%clk 0:00:09.6]} 96. Rh8 {[%clk 0:00:05.2]} 96...
Rg1+ {[%clk 0:00:09.1]} 97. Kf6 {[%clk 0:00:05.2]} 97... Rf1+ {[%clk 0:00:09.4]}
98. Ke7 {[%clk 0:00:05.5]} 98... Re1+ {[%clk 0:00:09.6]} 99. Kd7 {[%clk
0:00:05.8]} 99... Rf1 {[%clk 0:00:10]} 100. Rh5+ {[%clk 0:00:06.1]} 100... Ke4
{[%clk 0:00:09.9]} 101. Ke6 {[%clk 0:00:06.3]} 101... Rb1 {[%clk 0:00:09.1]}
102. Rh4+ {[%clk 0:00:06.3]} 102... Kf3 {[%clk 0:00:08.4]} 103. Kd5 {[%clk
0:00:04.6]} 103... Rb5+ {[%clk 0:00:07]} 104. Kc4 {[%clk 0:00:04.2]} 104... Rb1
{[%clk 0:00:07.4]} 105. Rd4 {[%clk 0:00:04.3]} 105... Ke3 {[%clk 0:00:07.3]}
106. Rd3+ {[%clk 0:00:03.5]} 106... Ke4 {[%clk 0:00:07.2]} 107. Rd4+ {[%clk
0:00:03.9]} 107... Ke5 {[%clk 0:00:07.2]} 108. Rd5+ {[%clk 0:00:04.1]} 108...
Ke4 {[%clk 0:00:06.8]} 109. Rd2 {[%clk 0:00:05]} 109... Ke3 {[%clk 0:00:06.7]}
110. Rd8 {[%clk 0:00:04.6]} 1/2-1/2

[Event "*** SCC Grand Prix: Titled Tuesday Blitz"]
[Site "Chess.com"]
[Date "2020.07.21"]
[Round "3"]
[White "ApacheSVD"]
[Black "winniethepooh04"]
[Result "1-0"]
[WhiteElo "2363"]
[BlackElo "2132"]
[TimeControl "180+1"]
[EndTime "10:22:27 PDT"]
[Termination "ApacheSVD won by resignation"]

1. e4 {[%clk 0:03:00.9]} 1... c5 {[%clk 0:02:57.7]} 2. Nf3 {[%clk 0:02:59.2]}
2... d6 {[%clk 0:02:58.1]} 3. d4 {[%clk 0:02:59.5]} 3... cxd4 {[%clk 0:02:58.7]}
4. Nxd4 {[%clk 0:03:00.4]} 4... Nf6 {[%clk 0:02:59.2]} 5. Nc3 {[%clk 0:03:01]}
5... a6 {[%clk 0:02:59.8]} 6. Qf3 {[%clk 0:03:01.3]} 6... Qc7 {[%clk 0:02:57.6]}
7. h3 {[%clk 0:02:47.4]} 7... Nc6 {[%clk 0:02:56.9]} 8. Nxc6 {[%clk 0:02:46.7]}
8... bxc6 {[%clk 0:02:56.3]} 9. g4 {[%clk 0:02:45.4]} 9... e5 {[%clk 0:02:49]}
10. Bc4 {[%clk 0:02:43.3]} 10... Be7 {[%clk 0:02:47.9]} 11. g5 {[%clk
0:02:43.1]} 11... d5 {[%clk 0:02:41.8]} 12. gxf6 {[%clk 0:02:42.3]} 12... dxc4
{[%clk 0:02:40.6]} 13. fxe7 {[%clk 0:02:42.3]} 13... Qxe7 {[%clk 0:02:40.7]} 14.
Rg1 {[%clk 0:02:38.3]} 14... g6 {[%clk 0:02:29.5]} 15. Bg5 {[%clk 0:02:37.6]}
15... Qb4 {[%clk 0:02:29.1]} 16. Qf6 {[%clk 0:02:31.9]} 1-0

[Event "*** SCC Grand Prix: Titled Tuesday Blitz"]
[Site "Chess.com"]
[Date "2020.07.21"]
[Round "3"]
[White "nrvignesh"]
[Black "NiranjanNavalgund"]
[Result "0-1"]
[WhiteElo "2765"]
[BlackElo "2456"]
[TimeControl "180+1"]
[EndTime "10:23:29 PDT"]
[Termination "NiranjanNavalgund won by resignation"]

1. e4 {[%clk 0:03:00.9]} 1... e5 {[%clk 0:02:59.4]} 2. Nf3 {[%clk 0:03:00.4]}
2... Nc6 {[%clk 0:02:57.2]} 3. Bc4 {[%clk 0:02:59.8]} 3... Nf6 {[%clk 0:02:57]}
4. d3 {[%clk 0:02:59.7]} 4... d6 {[%clk 0:02:54.9]} 5. O-O {[%clk 0:02:59.3]}
5... h6 {[%clk 0:02:53.8]} 6. d4 {[%clk 0:02:56.9]} 6... Bg4 {[%clk 0:02:46.8]}
7. dxe5 {[%clk 0:02:55.6]} 7... Nxe5 {[%clk 0:02:43.9]} 8. Be2 {[%clk
0:02:55.2]} 8... Qd7 {[%clk 0:02:30.7]} 9. Nxe5 {[%clk 0:02:51.1]} 9... dxe5
{[%clk 0:02:31.6]} 10. Qxd7+ {[%clk 0:02:46.4]} 10... Bxd7 {[%clk 0:02:32.5]}
11. Bd3 {[%clk 0:02:31.8]} 11... Bc5 {[%clk 0:02:29.3]} 12. Nd2 {[%clk
0:02:27.9]} 12... O-O-O {[%clk 0:02:28.9]} 13. a4 {[%clk 0:02:26.7]} 13... Bc6
{[%clk 0:02:21.3]} 14. Nb3 {[%clk 0:02:24.8]} 14... Be7 {[%clk 0:02:13.7]} 15.
f3 {[%clk 0:02:23.6]} 15... b6 {[%clk 0:02:09.8]} 16. a5 {[%clk 0:02:21.4]}
16... Kb8 {[%clk 0:02:09.5]} 17. Be3 {[%clk 0:02:20.5]} 17... Bd7 {[%clk
0:02:06.7]} 18. axb6 {[%clk 0:02:15.5]} 18... cxb6 {[%clk 0:02:07.6]} 19. Ra2
{[%clk 0:02:11.3]} 19... Be6 {[%clk 0:02:07.7]} 20. Kf2 {[%clk 0:02:08.8]} 20...
Bxb3 {[%clk 0:02:05.1]} 0-1

[Event "*** SCC Grand Prix: Titled Tuesday Blitz"]
[Site "Chess.com"]
[Date "2020.07.21"]
[Round "3"]
[White "Alopekos"]
[Black "SidArun"]
[Result "1-0"]
[WhiteElo "2345"]
[BlackElo "2247"]
[TimeControl "180+1"]
[EndTime "10:23:38 PDT"]
[Termination "Alopekos won by resignation"]

1. e4 {[%clk 0:03:00.9]} 1... c6 {[%clk 0:03:00.1]} 2. d4 {[%clk 0:03:00.4]}
2... d5 {[%clk 0:03:00.3]} 3. Nd2 {[%clk 0:03:01.1]} 3... dxe4 {[%clk
0:02:59.6]} 4. Nxe4 {[%clk 0:03:02]} 4... Bf5 {[%clk 0:02:59.8]} 5. Ng3 {[%clk
0:03:01.8]} 5... Bg6 {[%clk 0:03:00.2]} 6. h4 {[%clk 0:03:02.4]} 6... h6 {[%clk
0:03:00.3]} 7. Nf3 {[%clk 0:03:03]} 7... Nd7 {[%clk 0:03:00.2]} 8. h5 {[%clk
0:03:03.7]} 8... Bh7 {[%clk 0:03:00.2]} 9. Bd3 {[%clk 0:03:04.4]} 9... Bxd3
{[%clk 0:03:00.2]} 10. Qxd3 {[%clk 0:03:05.3]} 10... e6 {[%clk 0:03:00.7]} 11.
Bd2 {[%clk 0:03:05.5]} 11... Ngf6 {[%clk 0:03:01]} 12. O-O-O {[%clk 0:03:05.9]}
12... Be7 {[%clk 0:03:01.3]} 13. Kb1 {[%clk 0:03:04.9]} 13... O-O {[%clk
0:03:01.4]} 14. Qe2 {[%clk 0:03:05.4]} 14... a5 {[%clk 0:02:57.5]} 15. Ne5
{[%clk 0:02:52.6]} 15... a4 {[%clk 0:02:56.3]} 16. a3 {[%clk 0:02:45.1]} 16...
b5 {[%clk 0:02:55.9]} 17. Nxc6 {[%clk 0:02:42.3]} 17... Qe8 {[%clk 0:02:55.6]}
18. Nxe7+ {[%clk 0:02:03.2]} 18... Qxe7 {[%clk 0:02:55.5]} 19. Bb4 {[%clk
0:02:04.1]} 19... Qd8 {[%clk 0:02:52.7]} 20. Bxf8 {[%clk 0:02:04.2]} 20... Qxf8
{[%clk 0:02:52.9]} 21. Ne4 {[%clk 0:01:56.8]} 21... Nd5 {[%clk 0:02:51.4]} 22.
Qxb5 {[%clk 0:01:27.6]} 22... Rb8 {[%clk 0:02:42.7]} 23. Qxd7 {[%clk 0:01:26.8]}
1-0

[Event "*** SCC Grand Prix: Titled Tuesday Blitz"]
[Site "Chess.com"]
[Date "2020.07.21"]
[Round "3"]
[White "BeanScreen"]
[Black "Ze-Pequeno"]
[Result "1-0"]
[WhiteElo "2687"]
[BlackElo "2241"]
[TimeControl "180+1"]
[EndTime "10:23:48 PDT"]
[Termination "BeanScreen won by resignation"]

1. e4 {[%clk 0:03:00.9]} 1... c5 {[%clk 0:02:59.4]} 2. Nf3 {[%clk 0:03:01.1]}
2... d6 {[%clk 0:02:59.8]} 3. d4 {[%clk 0:03:01.6]} 3... cxd4 {[%clk 0:02:59.9]}
4. Nxd4 {[%clk 0:03:02.5]} 4... Nf6 {[%clk 0:03:00.4]} 5. Nc3 {[%clk 0:03:03]}
5... a6 {[%clk 0:03:00.8]} 6. Be3 {[%clk 0:03:03.5]} 6... e6 {[%clk 0:03:00.6]}
7. f3 {[%clk 0:03:03.4]} 7... b5 {[%clk 0:03:00.5]} 8. Qd2 {[%clk 0:03:03.7]}
8... Bb7 {[%clk 0:03:00.4]} 9. g4 {[%clk 0:03:03.5]} 9... h6 {[%clk 0:02:59.6]}
10. O-O-O {[%clk 0:03:03.7]} 10... Nbd7 {[%clk 0:02:58.9]} 11. h4 {[%clk
0:03:04.1]} 11... Nb6 {[%clk 0:02:58.8]} 12. Bh3 {[%clk 0:03:01.8]} 12... Nc4
{[%clk 0:02:51.3]} 13. Qd3 {[%clk 0:03:01.7]} 13... Nd7 {[%clk 0:02:45.3]} 14.
g5 {[%clk 0:02:59.4]} 14... Nc5 {[%clk 0:02:37.2]} 15. Qe2 {[%clk 0:02:59.6]}
15... Nxe3 {[%clk 0:02:36.4]} 16. Qxe3 {[%clk 0:03:00.1]} 16... b4 {[%clk
0:02:36]} 17. Nce2 {[%clk 0:02:59.4]} 17... g6 {[%clk 0:01:57.4]} 18. h5 {[%clk
0:02:50.4]} 18... hxg5 {[%clk 0:01:43.6]} 19. hxg6 {[%clk 0:02:50.6]} 19... Bg7
{[%clk 0:01:43.6]} 20. gxf7+ {[%clk 0:02:50.3]} 20... Kxf7 {[%clk 0:01:44.5]}
21. f4 {[%clk 0:02:43.4]} 21... Bxe4 {[%clk 0:01:25]} 22. Nxe6 {[%clk
0:02:36.1]} 1-0

[Event "*** SCC Grand Prix: Titled Tuesday Blitz"]
[Site "Chess.com"]
[Date "2020.07.21"]
[Round "3"]
[White "mjray79"]
[Black "RoelandPruijssers"]
[Result "0-1"]
[WhiteElo "2346"]
[BlackElo "2574"]
[TimeControl "180+1"]
[EndTime "10:24:05 PDT"]
[Termination "RoelandPruijssers won by resignation"]

1. d4 {[%clk 0:03:00.9]} 1... f5 {[%clk 0:02:59]} 2. Nc3 {[%clk 0:02:59.1]} 2...
Nf6 {[%clk 0:02:58.5]} 3. Bg5 {[%clk 0:02:59.6]} 3... d5 {[%clk 0:02:58.9]} 4.
Bxf6 {[%clk 0:02:59.1]} 4... exf6 {[%clk 0:02:59.8]} 5. e3 {[%clk 0:02:58.5]}
5... Be6 {[%clk 0:02:59.6]} 6. Qf3 {[%clk 0:02:58.8]} 6... Nc6 {[%clk
0:02:50.1]} 7. a3 {[%clk 0:02:57]} 7... Qd7 {[%clk 0:02:49.1]} 8. Bd3 {[%clk
0:02:55.6]} 8... h5 {[%clk 0:02:46.3]} 9. Nge2 {[%clk 0:02:55.2]} 9... O-O-O
{[%clk 0:02:38.4]} 10. Nf4 {[%clk 0:02:43.2]} 10... Bf7 {[%clk 0:02:36.1]} 11.
Qh3 {[%clk 0:02:36.9]} 11... Ne7 {[%clk 0:02:20.3]} 12. O-O-O {[%clk 0:02:15.1]}
12... g5 {[%clk 0:02:19]} 13. Nfe2 {[%clk 0:02:14.8]} 13... Be6 {[%clk
0:02:04.2]} 14. g3 {[%clk 0:02:02.8]} 14... f4 {[%clk 0:02:01.1]} 15. Qg2 {[%clk
0:02:03]} 15... Bh3 {[%clk 0:01:58.8]} 16. Qf3 {[%clk 0:01:40.2]} 16... Bg4
{[%clk 0:01:56.4]} 17. Qg2 {[%clk 0:01:40.1]} 17... f3 {[%clk 0:01:56]} 18. Qg1
{[%clk 0:01:40.3]} 18... fxe2 {[%clk 0:01:50.4]} 19. Nxe2 {[%clk 0:01:39.1]}
19... Bf3 {[%clk 0:01:49.5]} 0-1

[Event "*** SCC Grand Prix: Titled Tuesday Blitz"]
[Site "Chess.com"]
[Date "2020.07.21"]
[Round "3"]
[White "Supernotar"]
[Black "JesseKraai"]
[Result "1/2-1/2"]
[WhiteElo "2743"]
[BlackElo "2519"]
[TimeControl "180+1"]
[EndTime "10:24:07 PDT"]
[Termination "Game drawn by agreement"]

1. d4 {[%clk 0:03:00.9]} 1... d6 {[%clk 0:02:59.2]} 2. c4 {[%clk 0:02:58.5]}
2... e5 {[%clk 0:02:58.7]} 3. Nc3 {[%clk 0:02:58.2]} 3... exd4 {[%clk
0:02:58.3]} 4. Qxd4 {[%clk 0:02:57.9]} 4... Nc6 {[%clk 0:02:58.6]} 5. Qd2 {[%clk
0:02:57.9]} 5... g6 {[%clk 0:02:57.9]} 6. b3 {[%clk 0:02:58.2]} 6... Bg7 {[%clk
0:02:58.4]} 7. Bb2 {[%clk 0:02:58.4]} 7... Nf6 {[%clk 0:02:58.4]} 8. g3 {[%clk
0:02:58.3]} 8... O-O {[%clk 0:02:58.2]} 9. Bg2 {[%clk 0:02:58.5]} 9... Re8
{[%clk 0:02:58.7]} 10. Nh3 {[%clk 0:02:58.6]} 10... Ne5 {[%clk 0:02:52.9]} 11.
Nf4 {[%clk 0:02:58.5]} 11... c6 {[%clk 0:02:45.5]} 12. h4 {[%clk 0:02:57.1]}
12... Qe7 {[%clk 0:02:43.1]} 13. O-O {[%clk 0:02:56.1]} 13... Bg4 {[%clk
0:02:41.4]} 14. Rad1 {[%clk 0:02:53.7]} 14... Rad8 {[%clk 0:02:40.6]} 15. Rfe1
{[%clk 0:02:53.4]} 15... Nh5 {[%clk 0:02:36.1]} 16. Nxh5 {[%clk 0:02:51.2]}
16... Bxh5 {[%clk 0:02:33.7]} 17. Ne4 {[%clk 0:02:44.7]} 17... d5 {[%clk
0:02:26.6]} 18. cxd5 {[%clk 0:02:43.3]} 18... Rxd5 {[%clk 0:02:25.9]} 19. Qc2
{[%clk 0:02:41.6]} 19... Rxd1 {[%clk 0:02:20.3]} 20. Rxd1 {[%clk 0:02:41]} 20...
Bg4 {[%clk 0:02:14.3]} 21. Rd2 {[%clk 0:02:26.9]} 21... Bf5 {[%clk 0:02:10]} 22.
Qd1 {[%clk 0:02:19.3]} 22... Bxe4 {[%clk 0:02:05]} 23. Bxe4 {[%clk 0:02:17.5]}
23... Ng4 {[%clk 0:02:04.8]} 24. Bxg7 {[%clk 0:02:11]} 24... Kxg7 {[%clk
0:02:04.5]} 25. Bf3 {[%clk 0:02:10]} 25... Ne5 {[%clk 0:02:00.9]} 26. Bg2 {[%clk
0:02:07.8]} 26... Qc5 {[%clk 0:01:59.3]} 27. e3 {[%clk 0:02:02.6]} 27... Re7
{[%clk 0:01:57]} 28. Rd4 {[%clk 0:01:57.6]} 28... a5 {[%clk 0:01:51]} 29. Qd2
{[%clk 0:01:55.7]} 1/2-1/2

[Event "*** SCC Grand Prix: Titled Tuesday Blitz"]
[Site "Chess.com"]
[Date "2020.07.21"]
[Round "3"]
[White "VladimirBugayev"]
[Black "MIJUAREZ"]
[Result "0-1"]
[WhiteElo "2148"]
[BlackElo "2383"]
[TimeControl "180+1"]
[EndTime "10:24:31 PDT"]
[Termination "MIJUAREZ won by resignation"]

1. e4 {[%clk 0:03:00.9]} 1... c5 {[%clk 0:03:00.9]} 2. a3 {[%clk 0:03:00.4]}
2... e6 {[%clk 0:03:00.3]} 3. b4 {[%clk 0:02:59.7]} 3... b6 {[%clk 0:02:59.8]}
4. c3 {[%clk 0:02:52.4]} 4... d5 {[%clk 0:02:59.3]} 5. e5 {[%clk 0:02:50.1]}
5... Nc6 {[%clk 0:02:54.5]} 6. d4 {[%clk 0:02:49.1]} 6... f6 {[%clk 0:02:53.5]}
7. b5 {[%clk 0:02:38.2]} 7... Na5 {[%clk 0:02:52.8]} 8. f4 {[%clk 0:02:34]} 8...
fxe5 {[%clk 0:02:51.1]} 9. dxe5 {[%clk 0:02:33.2]} 9... g6 {[%clk 0:02:47.9]}
10. Nf3 {[%clk 0:02:31.6]} 10... Bg7 {[%clk 0:02:47.9]} 11. h4 {[%clk
0:02:30.9]} 11... Ne7 {[%clk 0:02:47.1]} 12. h5 {[%clk 0:02:31]} 12... O-O
{[%clk 0:02:46.9]} 13. Bd3 {[%clk 0:02:26.7]} 13... Nf5 {[%clk 0:02:45.7]} 14.
g4 {[%clk 0:02:26.3]} 14... Ng3 {[%clk 0:02:44.8]} 15. Rh3 {[%clk 0:02:25]}
15... Ne4 {[%clk 0:02:44.4]} 16. h6 {[%clk 0:02:08.2]} 16... Bh8 {[%clk
0:02:40.8]} 17. Bxe4 {[%clk 0:02:08.3]} 17... dxe4 {[%clk 0:02:40.2]} 18. Qxd8
{[%clk 0:01:55.1]} 18... Rxd8 {[%clk 0:02:41.1]} 19. Nfd2 {[%clk 0:01:48.1]}
19... g5 {[%clk 0:02:28.1]} 20. Nxe4 {[%clk 0:01:37.1]} 20... Nb3 {[%clk
0:02:26.9]} 21. Bb2 {[%clk 0:01:11.2]} 21... Nxa1 {[%clk 0:02:23.4]} 22. Bxa1
{[%clk 0:01:11.1]} 22... gxf4 {[%clk 0:02:23.8]} 23. Nf6+ {[%clk 0:01:11.5]}
23... Bxf6 {[%clk 0:02:22.2]} 24. exf6 {[%clk 0:01:11.2]} 24... e5 {[%clk
0:02:17.6]} 25. c4 {[%clk 0:01:08.1]} 25... Kf7 {[%clk 0:02:13.6]} 26. Bxe5
{[%clk 0:01:03.3]} 26... Re8 {[%clk 0:02:12.8]} 0-1

[Event "*** SCC Grand Prix: Titled Tuesday Blitz"]
[Site "Chess.com"]
[Date "2020.07.21"]
[Round "3"]
[White "iaraldinho"]
[Black "INDIAN-ELEPHANT"]
[Result "1-0"]
[WhiteElo "2526"]
[BlackElo "2730"]
[TimeControl "180+1"]
[EndTime "10:24:34 PDT"]
[Termination "iaraldinho won by resignation"]

1. e4 {[%clk 0:03:00.9]} 1... e5 {[%clk 0:02:59.7]} 2. Nf3 {[%clk 0:03:00.7]}
2... Nc6 {[%clk 0:02:59.9]} 3. d4 {[%clk 0:03:00.9]} 3... exd4 {[%clk 0:03:00]}
4. Bc4 {[%clk 0:03:01.3]} 4... Nf6 {[%clk 0:03:00]} 5. O-O {[%clk 0:03:01.8]}
5... Nxe4 {[%clk 0:03:00]} 6. Re1 {[%clk 0:03:02.3]} 6... d5 {[%clk 0:03:00.6]}
7. Bxd5 {[%clk 0:03:03.2]} 7... Qxd5 {[%clk 0:03:00.3]} 8. Nc3 {[%clk
0:03:04.1]} 8... Qd7 {[%clk 0:03:01]} 9. Rxe4+ {[%clk 0:03:01.8]} 9... Be7
{[%clk 0:02:59.8]} 10. Nxd4 {[%clk 0:03:01.8]} 10... f5 {[%clk 0:02:34.8]} 11.
Rf4 {[%clk 0:02:49.6]} 11... O-O {[%clk 0:02:33.9]} 12. Nxc6 {[%clk 0:02:47.7]}
12... Qxc6 {[%clk 0:02:33.8]} 13. Qd5+ {[%clk 0:02:46.6]} 13... Qxd5 {[%clk
0:02:32.3]} 14. Nxd5 {[%clk 0:02:47.5]} 14... Bd6 {[%clk 0:02:33.2]} 15. Rd4
{[%clk 0:02:39.6]} 15... Be6 {[%clk 0:02:29.2]} 16. Bf4 {[%clk 0:02:31.1]} 16...
Rad8 {[%clk 0:02:20.9]} 17. Rad1 {[%clk 0:02:16.3]} 17... Bxf4 {[%clk
0:02:15.1]} 18. Nxf4 {[%clk 0:02:16]} 18... Rxd4 {[%clk 0:02:13.8]} 19. Rxd4
{[%clk 0:02:16.9]} 19... Bc8 {[%clk 0:02:04.7]} 20. h4 {[%clk 0:02:10]} 20... c6
{[%clk 0:02:04.6]} 21. c4 {[%clk 0:02:05.6]} 21... Kf7 {[%clk 0:02:04.4]} 22. c5
{[%clk 0:02:05]} 22... Ke7 {[%clk 0:02:03.3]} 23. Rd3 {[%clk 0:02:03.4]} 23...
Rd8 {[%clk 0:02:02.9]} 24. Rg3 {[%clk 0:02:01]} 24... g6 {[%clk 0:02:01.8]} 25.
h5 {[%clk 0:02:00.5]} 25... Rd4 {[%clk 0:01:44.2]} 26. hxg6 {[%clk 0:01:55.7]}
26... Rxf4 {[%clk 0:01:44.1]} 27. gxh7 {[%clk 0:01:53.3]} 27... Rh4 {[%clk
0:01:40.5]} 28. Rh3 {[%clk 0:01:53.4]} 1-0